bitfinex/quotes_ETHUSD_20250529
["timestamp","ask_amount","ask_price","bid_price","bid_amount"]
[1748536290655,8.49163312,2650.6,2650.1,13.7733627]
[1748536290897,8.49163312,2650.6,2650.1,10.0]
[1748536290898,4.7189,2650.6,2650.1,10.0]
[1748536291080,4.59188783,2650.2,2649.7,13.77397428]
[1748536291261,4.59188783,2650.2,2649.7,3.77397428]
[1748536291592,4.59188783,2650.2,2649.8,3.77384464]
[1748536291593,4.7775,2650.2,2649.8,3.77384464]
[1748536291991,0.8185,2650.2,2649.9,3.7737048]
[1748536292165,4.7775,2650.2,2649.9,10.0]
[1748536292693,4.7775,2650.2,2649.9,13.77372105]
[1748536292892,4.7775,2650.2,2649.9,3.77372105]
[1748536293221,3.959,2650.2,2650.0,3.77358131]
[1748536293363,3.959,2650.2,2650.1,13.77332633]
[1748536293558,0.7566,2650.4,2650.1,13.77332633]
[1748536294098,0.7566,2650.4,2650.1,10.0]
[1748536294291,4.52961777,2650.4,2650.0,10.0]
[1748536294609,0.7566,2650.4,2650.1,3.77344251]
[1748536294812,0.7566,2650.4,2650.2,3.77321614]
[1748536294965,0.7566,2650.4,2650.1,3.77337025]
[1748536295360,0.7566,2650.4,2650.1,10.0]
[1748536295605,0.7566,2650.4,2649.9,3.77361483]
[1748536295912,4.52966165,2650.4,2649.9,3.77361483]
[1748536296062,0.8189,2650.3,2649.2,0.783]
[1748536296261,0.8189,2650.3,2648.9,0.3800993]
[1748536296262,0.8189,2649.8,2649.1,32.401347]
[1748536296468,4.5933182,2649.5,2649.0,32.91559]
[1748536296674,4.5933182,2649.5,2649.0,48.2164939]
[1748536296992,4.5933182,2649.5,2649.1,33.324127]
[1748536297194,3.959,2649.4,2649.2,33.323746]
[1748536298058,0.8251,2649.3,2649.1,32.487956]
[1748536298258,0.8251,2649.3,2648.5,15.996572]
[1748536298459,0.8251,2649.1,2648.5,8.0]
[1748536298689,3.959,2649.0,2648.6,13.77557276]
[1748536298891,7.73402781,2649.0,2648.6,10.0]
[1748536299094,3.959,2649.0,2648.5,10.0]
[1748536299281,0.8251,2648.9,2648.4,0.38323425]
[1748536299455,4.60037421,2648.9,2648.4,0.38323425]
[1748536299661,8.21243624,2649.0,2648.1,13.77621591]
[1748536299662,4.60064435,2648.7,2648.1,13.77621591]
[1748536299994,4.43741,2649.0,2647.6,10.0]
[1748536299995,0.8251,2648.5,2647.6,10.0]
[1748536300298,3.77629911,2648.1,2647.6,3.77693444]
[1748536300471,3.959,2648.0,2647.7,6.87043855]
[1748536300673,4.55587655,2647.9,2647.5,0.36808542]
[1748536300870,4.55579668,2647.9,2647.4,3.7772742]
[1748536301582,0.7792,2647.9,2647.0,8.81442]
[1748536301903,0.7792,2647.9,2646.9,0.7573]
[1748536301904,0.7792,2647.9,2647.4,10.0]
[1748536302199,3.959,2648.0,2646.8,3.77809259]
[1748536302200,0.7787,2647.4,2646.8,3.77809259]
[1748536302360,7.73651121,2647.3,2646.8,6.80381503]
[1748536302561,7.73651121,2647.3,2646.8,11.77812503]
[1748536302562,3.959,2647.3,2646.8,11.77812503]
[1748536302872,3.77822932,2646.8,2645.9,0.7774]
[1748536303057,3.959,2646.7,2646.2,3.77898738]
[1748536303260,7.73740015,2646.7,2646.1,3.77903877]
[1748536303471,0.8253,2646.6,2646.1,3.77903877]
[1748536303660,0.8253,2646.6,2646.1,4.53487306]
[1748536303857,0.8253,2646.6,2646.2,3.77895193]
[1748536304065,0.8253,2646.6,2646.1,0.75583429]
[1748536304257,4.60381354,2646.6,2645.8,17.871168]
[1748536304496,4.60381354,2646.6,2646.1,10.0]
[1748536304721,3.77865746,2646.5,2646.0,4.209887]
[1748536304923,3.77865746,2646.5,2646.1,10.0]
[1748536305069,3.77880605,2646.4,2646.0,4.60262103]
[1748536305266,3.961,2646.3,2646.0,0.37393403]
[1748536305502,3.961,2646.3,2645.7,10.0]
[1748536305503,3.961,2646.3,2646.1,3.7790873]
[1748536305678,0.8253,2646.6,2646.1,3.7790873]
[1748536305679,3.961,2646.5,2646.3,3.77881502]
[1748536306313,3.961,2646.5,2646.3,13.77881502]
[1748536306472,3.961,2646.5,2646.3,10.0]
[1748536306814,3.961,2646.5,2646.2,3.77895063]
[1748536307122,3.961,2646.5,2646.2,3.778944]
[1748536307269,3.961,2646.5,2646.3,10.0]
[1748536307470,3.961,2646.5,2646.3,13.77886066]
[1748536307773,0.8253,2646.6,2646.3,10.0]
[1748536307975,4.7863,2646.6,2646.3,10.0]
[1748536308377,4.7863,2646.6,2646.2,3.77900385]
[1748536308578,4.7863,2646.6,2646.3,10.0]
[1748536308979,9.42125851,2646.6,2646.1,13.092601]
[1748536309209,5.64275113,2646.6,2646.2,10.0]
[1748536309512,5.64275113,2646.6,2646.2,3.77899673]
[1748536310007,5.64275113,2646.6,2646.3,3.7788325]
[1748536310409,5.64275113,2646.6,2646.3,13.7788325]
[1748536310601,0.8253,2646.6,2646.4,3.77867946]
[1748536310771,1.064,2647.1,2646.0,0.37209126]
[1748536310772,0.8083,2647.0,2646.1,3.77912145]
[1748536310971,0.8083,2647.0,2645.9,10.0]
[1748536310972,3.962,2646.9,2646.4,3.77864558]
[1748536311504,3.962,2646.9,2646.1,8.0]
[1748536311669,3.962,2646.9,2646.5,3.77843558]
[1748536312106,3.962,2646.9,2646.6,3.7784327]
[1748536312305,0.8083,2647.0,2646.8,3.77813974]
[1748536312571,0.8083,2647.0,2646.6,3.77838548]
[1748536312572,0.8083,2647.0,2646.6,4.14786493]
[1748536312809,0.8083,2647.0,2646.9,3.77800445]
[1748536313002,1.064,2647.2,2647.0,3.77777257]
[1748536313177,1.064,2647.2,2646.9,3.77793162]
[1748536313378,3.962,2647.1,2646.9,3.77793162]
[1748536313975,1.064,2647.2,2647.0,3.77778547]
[1748536314297,4.7703,2647.3,2646.9,13.77800265]
[1748536314496,4.7703,2647.3,2647.0,3.7777953]
[1748536315506,4.7703,2647.3,2647.1,3.77771381]
[1748536315714,4.7703,2647.3,2647.0,3.77773191]
[1748536315913,4.7703,2647.3,2646.9,3.77792362]
[1748536316135,0.8083,2647.3,2646.9,3.77792362]
[1748536316275,4.7703,2647.3,2646.9,3.77792362]
[1748536316475,4.7703,2647.3,2647.0,3.77784667]
[1748536316979,0.8083,2647.3,2647.0,3.77784667]
[1748536317199,0.8218,2647.6,2647.3,3.77736584]
[1748536317510,3.962,2647.4,2647.1,3.77765737]
[1748536317713,3.962,2647.4,2647.1,3.77771901]
[1748536317890,3.962,2647.4,2647.2,3.77756609]
[1748536318075,3.962,2647.4,2647.1,3.77762521]
[1748536318412,3.962,2647.4,2646.9,3.77800445]
[1748536318713,7.73932609,2647.4,2646.9,3.77793534]
[1748536319418,7.73932609,2647.4,2646.8,3.77812104]
[1748536319419,3.77745765,2647.3,2646.8,3.77812104]
[1748536319614,7.73936928,2647.4,2646.9,3.77799357]
[1748536319947,7.73936928,2647.4,2646.9,13.77799357]
[1748536320228,3.962,2647.4,2646.8,3.77811458]
[1748536320439,7.73930546,2647.4,2646.9,3.77791144]
[1748536320821,3.77724766,2647.5,2647.0,3.77782802]
[1748536321127,3.962,2647.4,2647.0,3.77780532]
[1748536321830,3.962,2647.4,2647.1,10.0]
[1748536322134,4.59881053,2647.6,2647.3,3.77734372]
[1748536322135,0.8218,2647.6,2647.3,3.77734372]
[1748536322305,0.8218,2647.6,2647.4,3.77716364]
[1748536322506,0.8218,2647.6,2647.5,3.77714825]
[1748536323233,0.8218,2647.6,2647.2,10.0]
[1748536323434,0.8218,2647.6,2646.9,3.77800445]
[1748536323595,0.8218,2647.6,2646.7,10.7877]
[1748536323792,4.59886542,2647.6,2647.1,3.77759071]
[1748536323991,1.4,2647.4,2647.1,3.77759071]
[1748536324233,1.4,2647.4,2647.2,10.0]
[1748536324431,1.4,2647.4,2647.3,3.77743361]
[1748536325432,1.4,2647.4,2647.3,10.0]
[1748536325635,1.4,2647.4,2646.9,13.77795253]
[1748536325795,1.4,2647.4,2647.1,3.77762961]
[1748536326494,1.4,2647.4,2647.1,10.0]
[1748536326727,0.7876,2647.3,2647.1,13.77771316]
[1748536327095,0.7876,2647.3,2647.2,3.7775763]
[1748536327710,4.7486,2647.3,2646.8,3.77814719]
[1748536327909,4.7486,2647.3,2647.1,13.77771764]
[1748536328113,4.7486,2647.3,2647.1,3.77771764]
[1748536328428,3.961,2647.3,2647.2,3.7775763]
[1748536328928,1.4,2647.4,2647.2,3.7775763]
[1748536328929,5.361,2647.4,2647.2,3.7775763]
[1748536329828,5.361,2647.4,2647.2,10.0]
[1748536330041,5.361,2647.4,2647.1,3.77764634]
[1748536330218,5.361,2647.4,2646.8,10.0]
[1748536330219,5.361,2647.4,2647.3,3.77743361]
[1748536330427,5.361,2647.4,2647.1,10.0]
[1748536330621,5.361,2647.4,2647.2,3.77746799]
[1748536331158,5.361,2647.4,2647.3,3.77743361]
[1748536331836,5.361,2647.4,2647.2,10.0]
[1748536332131,5.361,2647.4,2647.0,3.77785838]
[1748536332336,5.361,2647.4,2646.9,3.77788327]
[1748536332542,3.77793136,2647.0,2646.6,0.36953934]
[1748536332704,7.73902956,2646.9,2646.6,0.36953934]
[1748536332908,0.8157,2646.8,2646.6,10.0]
[1748536333138,0.8157,2646.8,2646.5,3.77850151]
[1748536333316,1.67116224,2646.8,2646.5,13.411629]
[1748536333664,1.67116224,2646.8,2646.2,3.77893579]
[1748536333665,0.36104865,2646.7,2646.2,3.77893579]
[1748536333807,3.77885383,2646.4,2645.5,12.79321]
[1748536334004,8.10092082,2646.3,2645.8,3.77956577]
[1748536334229,0.8187,2646.2,2645.8,3.77956577]
[1748536334428,0.8187,2646.2,2645.5,4.167474]
[1748536334604,0.36098409,2646.1,2645.8,3.77953516]
[1748536334815,3.961,2646.0,2645.8,3.77953516]
[1748536335228,3.961,2646.0,2645.9,3.77943232]
[1748536336007,3.961,2646.0,2645.8,3.77950368]
[1748536336202,3.961,2646.0,2645.5,0.38695083]
[1748536336442,4.43897,2646.0,2645.5,3.77999663]
[1748536336642,4.43897,2646.0,2645.6,3.77974783]
[1748536337410,0.47797,2646.0,2645.6,3.77974783]
[1748536337710,3.961,2645.9,2645.6,3.77974783]
[1748536338230,3.961,2645.9,2645.5,3.77993088]
[1748536338836,1.219197,2645.8,2645.4,0.3693685]
[1748536339015,0.36035895,2645.7,2645.4,0.3693685]
[1748536339210,4.99885126,2645.8,2645.4,0.3693685]
[1748536339416,0.3603901,2645.7,2645.3,3.78028404]
[1748536339612,0.7764,2645.6,2645.2,3.78036664]
[1748536339842,3.961,2645.5,2645.2,3.78036664]
[1748536340151,3.961,2645.5,2645.3,3.78020755]
[1748536341011,3.961,2645.5,2645.1,3.78052321]
[1748536341322,3.961,2645.5,2644.8,3.78096475]
[1748536341323,1.4,2645.4,2645.0,3.78060924]
[1748536341644,1.4,2645.4,2645.3,3.78028957]
[1748536341838,1.4,2645.4,2644.8,3.78093432]
[1748536341839,1.4,2645.4,2645.2,3.78039805]
[1748536342212,1.4,2645.4,2645.1,0.38259067]
[1748536342491,0.583474,2645.3,2645.0,3.78071189]
[1748536342762,0.583474,2645.3,2644.6,8.11025309]
[1748536342915,0.583474,2645.3,2644.6,11.89149439]
[1748536343250,0.583474,2645.3,2644.9,3.78082322]
[1748536343748,4.56055228,2645.2,2644.7,3.78107644]
[1748536343963,4.47640263,2645.1,2644.6,0.11025309]
[1748536344112,3.78072968,2645.0,2644.7,0.38281742]
[1748536344311,4.47640263,2645.1,2644.6,0.11025309]
[1748536344312,3.78103177,2644.8,2644.6,0.11025309]
[1748536344543,0.7801,2645.0,2644.6,0.11025309]
[1748536344752,0.52565026,2644.9,2644.6,0.11025309]
[1748536345318,4.30653292,2644.9,2644.6,0.11025309]
[1748536345519,4.56111892,2644.8,2644.3,3.78164824]
[1748536345816,4.56111892,2644.8,2643.7,0.8169]
[1748536345817,4.56149196,2644.6,2643.9,10.0]
[1748536346047,0.7801,2644.6,2643.6,3.78272053]
[1748536346285,3.962,2644.5,2644.0,13.78200877]
[1748536346439,3.962,2644.5,2644.0,10.0]
[1748536346643,3.78158315,2644.4,2643.7,3.78254332]
[1748536346947,3.962,2644.5,2644.1,3.78197301]
[1748536347145,3.962,2644.5,2643.6,3.78272053]
[1748536347359,4.81433317,2644.5,2644.1,3.78192169]
[1748536347561,4.81433317,2644.5,2644.0,3.78206]
[1748536347777,4.81433317,2644.5,2643.8,3.78233631]
[1748536348064,4.81433317,2644.5,2643.7,8.0]
[1748536348065,0.7757,2644.3,2643.7,11.78255712]
[1748536348272,0.7757,2644.3,2643.9,3.78229131]
[1748536348915,0.7757,2644.3,2644.0,3.7821355]
[1748536349423,0.7757,2644.3,2644.0,3.78200542]
[1748536349618,0.7757,2644.3,2643.9,3.78221547]
[1748536349978,1.34322727,2644.3,2643.7,8.0]
[1748536350197,0.7757,2644.3,2644.2,3.78186218]
[1748536350352,0.7757,2644.3,2643.3,5.86165488]
[1748536350353,0.8199,2643.4,2643.1,0.02]
[1748536350699,4.7829,2643.4,2643.1,0.02]
[1748536350845,0.47829,2643.3,2643.1,0.02]
[1748536351041,3.963,2643.3,2643.2,3.7832246]
[1748536351251,0.8199,2643.4,2643.3,3.78314985]
[1748536351455,0.8165,2643.9,2643.8,3.78234359]
[1748536351653,0.44684625,2644.4,2644.2,3.78177931]
[1748536351891,0.44684625,2644.4,2644.3,13.78171916]
[1748536352043,0.44684625,2644.4,2644.1,3.7819858]
[1748536352044,1.26334625,2644.6,2644.5,3.78143316]
[1748536352560,0.44684625,2644.6,2644.5,3.78143316]
[1748536352770,0.7525,2645.0,2644.9,3.78086128]
[1748536352971,0.7525,2645.0,2644.7,3.78101813]
[1748536353155,0.7525,2645.0,2644.7,3.78114042]
[1748536353482,0.7525,2645.0,2644.6,3.78125422]
[1748536353859,0.7525,2645.0,2639.4,16.0]
[1748536353860,4.53326801,2645.0,2644.1,8.0]
[1748536354054,5.76094337,2645.0,2644.5,3.78136269]
[1748536354585,1.98017536,2645.0,2644.6,3.78124706]
[1748536354792,1.98017536,2645.0,2644.6,3.78128503]
[1748536355081,5.76089416,2645.0,2644.5,3.78136194]
[1748536355283,1.98017536,2645.0,2644.7,3.78113678]
[1748536355484,3.963,2644.9,2644.7,3.78113678]
[1748536355839,3.963,2644.9,2644.6,3.78127907]
[1748536355840,0.7525,2645.0,2644.8,3.7809996]
[1748536356084,3.963,2644.9,2644.7,3.7810431]
[1748536356577,3.963,2644.9,2644.8,3.78100423]
[1748536357344,3.963,2644.9,2644.7,3.78113671]
[1748536357560,3.963,2644.9,2644.8,3.78089152]
[1748536357966,4.7155,2645.0,2644.9,3.78086128]
[1748536358190,3.963,2645.0,2644.7,3.78101665]
[1748536358411,3.963,2645.0,2644.8,3.78099091]
[1748536358694,3.963,2645.0,2644.7,3.78101033]
[1748536358852,4.44,2645.0,2644.5,13.78133789]
[1748536359055,3.78144352,2644.5,2643.5,1.89865488]
[1748536359249,3.963,2644.4,2644.2,3.78178917]
[1748536359453,3.963,2644.4,2643.9,4.900191]
[1748536359685,3.963,2644.4,2644.3,3.78171916]
[1748536359888,0.767,2644.6,2644.5,3.78143316]
[1748536360113,0.767,2644.6,2644.4,3.78150951]
[1748536360391,4.73,2644.6,2644.5,3.78143316]
[1748536360586,4.73,2644.6,2644.4,3.78150884]
[1748536361197,4.73,2644.6,2644.5,3.78143316]
[1748536361396,4.73,2644.6,2644.3,3.78165951]
[1748536361397,4.73,2644.6,2644.4,3.78150247]
[1748536361891,4.73,2644.6,2644.5,3.78143316]
[1748536362193,4.73,2644.6,2644.4,3.78149784]
[1748536362494,0.767,2644.6,2644.5,3.78143316]
[1748536362793,3.963,2644.6,2644.5,3.78143316]
[1748536363158,3.963,2644.6,2644.4,3.78149821]
[1748536363829,3.963,2644.6,2644.2,3.78179019]
[1748536364098,0.8227,2644.5,2644.0,3.78209608]
[1748536364302,0.8227,2644.1,2643.7,3.78250538]
[1748536364459,0.8227,2644.1,2643.6,3.78268687]
[1748536364460,3.963,2644.0,2643.6,13.78264259]
[1748536364660,3.963,2644.0,2643.1,0.02]
[1748536364984,0.47857,2643.9,2643.5,3.136772]
[1748536365402,0.47857,2643.9,2643.6,3.78263057]
[1748536365794,3.963,2644.0,2643.6,3.78263057]
[1748536366116,4.60473768,2644.1,2643.6,3.78263057]
[1748536366419,3.963,2643.9,2643.6,3.78263138]
[1748536366713,3.963,2643.9,2643.7,3.78257423]
[1748536366872,3.963,2643.9,2643.4,3.78291052]
[1748536367077,3.963,2643.9,2643.6,3.78267292]
[1748536367377,0.8227,2644.1,2643.7,3.78252121]
[1748536367575,0.8227,2644.1,2643.4,6.687871]
[1748536367815,3.964,2644.0,2643.8,3.78236574]
[1748536368407,4.57380179,2644.7,2643.8,0.8135]
[1748536368722,3.7814593,2644.5,2644.0,3.78207183]
[1748536369099,7.74429778,2644.6,2643.8,0.8135]
[1748536369411,4.14131232,2644.5,2643.8,0.8135]
[1748536369585,0.35981434,2644.4,2643.9,13.78223563]
[1748536369783,3.78158806,2644.4,2643.9,10.0]
[1748536370022,3.78173907,2644.3,2643.8,3.78237222]
[1748536370347,3.964,2644.2,2643.8,3.78237222]
[1748536370700,1.26782566,2644.5,2643.7,10.0]
[1748536370909,3.78264062,2643.7,2643.1,14.18344034]
[1748536371119,3.963,2643.6,2643.3,10.0]
[1748536371296,3.963,2643.6,2643.4,3.78298626]
[1748536371641,3.963,2643.6,2643.3,13.78306642]
[1748536371786,3.963,2643.8,2643.3,5.20136172]
[1748536372142,3.963,2643.8,2643.5,3.78283272]
[1748536372280,3.963,2643.8,2643.5,3.78276404]
[1748536373019,3.963,2643.8,2643.4,3.78292988]
[1748536373388,3.963,2643.8,2643.5,10.0]
[1748536373829,3.963,2643.8,2643.4,3.78292988]
[1748536374181,3.963,2643.8,2643.3,13.78301427]
[1748536374385,3.963,2643.8,2643.4,3.78300445]
[1748536374588,3.963,2643.8,2643.5,10.0]
[1748536374838,3.963,2643.8,2643.5,3.78286362]
[1748536374995,3.964,2643.9,2643.5,3.78286362]
[1748536375187,3.964,2643.9,2643.4,3.78292839]
[1748536375386,3.78278556,2643.6,2643.1,0.40013154]
[1748536375590,4.7399,2643.5,2643.1,10.40013154]
[1748536375782,4.7399,2643.5,2643.2,10.0]
[1748536375988,4.7399,2643.5,2643.1,0.40013154]
[1748536376289,0.7759,2643.5,2643.2,3.78329297]
[1748536376510,4.7399,2643.5,2643.2,13.78329297]
[1748536376823,4.7399,2643.5,2643.1,3.80334439]
[1748536377026,4.7399,2643.5,2643.2,10.0]
[1748536377203,4.7399,2643.5,2643.2,13.78323992]
[1748536377398,4.7399,2643.5,2643.2,10.0]
[1748536377588,4.7399,2643.5,2643.1,4.17630941]
[1748536377794,4.7399,2643.5,2643.2,13.78328645]
[1748536378539,4.7399,2643.5,2643.2,10.0]
[1748536378823,3.964,2643.5,2643.2,13.78323048]
[1748536379023,0.7785,2643.7,2643.2,3.78321111]
[1748536379224,0.7785,2643.7,2643.4,3.78293848]
[1748536379225,3.964,2643.6,2643.4,3.78293848]
[1748536379436,3.964,2643.6,2643.2,3.78328032]
[1748536379653,3.964,2643.6,2643.3,13.78303887]
[1748536379987,3.964,2643.6,2643.1,10.39292237]
[1748536380196,7.74679039,2643.6,2643.1,0.39292237]
[1748536380540,0.7578,2643.2,2643.1,0.02]
[1748536380740,0.8281,2643.5,2643.1,0.40041031]
[1748536380912,0.8281,2643.5,2643.2,3.78321803]
[1748536380913,3.967,2643.3,2643.2,3.78321803]
[1748536381098,3.967,2643.3,2643.1,0.40041031]
[1748536381099,3.967,2643.3,2643.1,3.80337337]
[1748536381298,0.8281,2643.5,2643.2,3.78329297]
[1748536381551,3.967,2643.4,2643.3,3.78314985]
[1748536381850,0.8281,2643.5,2643.1,3.80342922]
[1748536382016,0.8004,2643.9,2643.4,3.78293276]
[1748536382202,0.35957666,2643.8,2643.3,3.7831151]
[1748536382404,3.966,2643.7,2643.5,3.782842]
[1748536383102,0.8004,2643.9,2643.5,3.782842]
[1748536383426,3.965,2643.7,2643.5,3.782842]
[1748536384127,0.8004,2643.9,2643.3,0.55]
[1748536384326,3.964,2643.8,2643.7,3.78250468]
[1748536384527,0.7887,2644.2,2643.7,3.78250468]
[1748536384528,3.964,2643.9,2643.7,3.78250468]
[1748536385041,3.964,2644.0,2643.7,3.78250468]
[1748536385399,0.7887,2644.2,2643.5,3.78282154]
[1748536385606,0.7887,2644.2,2643.8,3.78229892]
[1748536385801,0.7887,2644.2,2643.6,4.33268205]
[1748536386005,4.57057302,2644.2,2643.7,13.78249976]
[1748536386756,0.7887,2644.2,2643.8,3.78241662]
[1748536386956,0.7887,2644.2,2643.9,3.78228704]
[1748536387744,0.7887,2644.2,2643.5,8.276273]
[1748536387915,4.5705654,2644.2,2643.6,4.98855319]
[1748536388122,3.78202771,2644.1,2643.4,14.939374]
[1748536388341,3.78202771,2644.1,2643.6,3.78265651]
[1748536388521,0.7887,2644.2,2643.5,10.0]
[1748536388522,4.57062452,2644.2,2643.7,3.78256263]
[1748536388869,0.7887,2644.2,2643.7,3.78246303]
[1748536389059,0.7887,2644.2,2643.8,3.78241399]
[1748536389414,0.7887,2644.2,2643.7,3.78249669]
[1748536389604,0.7887,2644.2,2643.7,1.7565207]
[1748536389807,3.964,2644.1,2644.0,3.78214554]
[1748536390037,3.964,2644.2,2644.1,3.78196775]
[1748536390454,3.964,2644.2,2644.0,3.78206734]
[1748536390653,3.964,2644.4,2644.1,3.78192611]
[1748536391425,3.964,2644.4,2644.2,3.78178527]
[1748536391629,3.964,2644.4,2644.2,3.7817588]
[1748536391942,3.964,2644.5,2644.4,3.78154181]
[1748536392138,3.964,2644.6,2644.4,3.78149605]
[1748536392442,3.964,2644.6,2644.5,3.78143316]
[1748536392771,0.45122798,2645.2,2644.3,0.8206]
[1748536392772,0.8316,2644.9,2644.3,0.8206]
[1748536392979,3.964,2644.8,2644.3,0.8206]
[1748536393129,8.22468294,2644.8,2644.2,3.78174763]
[1748536393328,8.22468294,2644.8,2644.3,3.78170822]
[1748536393716,0.764,2644.7,2643.7,10.769]
[1748536393918,3.78150449,2644.5,2644.0,3.78214758]
[1748536394141,3.963,2644.4,2644.1,3.78200127]
[1748536394369,3.963,2644.4,2644.2,3.78184799]
[1748536394666,3.963,2644.4,2644.0,10.0]
[1748536394870,5.11558148,2644.4,2644.0,3.78206872]
[1748536395177,5.11558148,2644.4,2643.9,10.0]
[1748536395461,0.764,2644.3,2643.8,3.78234526]
[1748536395629,0.764,2644.7,2643.8,3.266842]
[1748536395953,3.963,2644.6,2644.1,3.78188028]
[1748536396157,7.74430219,2644.6,2644.0,3.78208894]
[1748536396358,7.74430219,2644.6,2643.5,8.769]
[1748536396359,3.78170447,2644.4,2643.5,8.769]
[1748536396559,4.54548881,2644.5,2643.8,3.78243437]
[1748536396560,4.54550205,2644.5,2643.8,3.78243437]
[1748536396730,4.54550205,2644.5,2644.0,3.7821455]
[1748536397247,0.764,2644.5,2643.9,3.598067]
[1748536397416,0.764,2644.5,2644.1,3.78188459]
[1748536398023,3.963,2644.4,2644.0,3.78212712]
[1748536398217,3.963,2644.4,2644.1,3.7819218]
[1748536398633,3.963,2644.4,2644.0,3.78204028]
[1748536398947,3.963,2644.4,2644.1,3.78191861]
[1748536399146,3.963,2644.4,2644.2,3.78183701]
[1748536399984,0.764,2644.5,2643.9,10.0]
[1748536400152,3.963,2644.5,2644.1,4.562962]
[1748536400336,3.963,2644.5,2644.4,3.78157616]
[1748536400767,3.963,2644.5,2644.2,3.78176922]
[1748536400768,3.963,2644.5,2644.1,10.0]
[1748536401071,3.963,2644.6,2644.3,10.0]
[1748536401276,3.963,2644.6,2644.3,3.78170257]
[1748536402082,3.963,2644.6,2644.4,3.78150642]
[1748536402282,0.8332,2644.8,2644.3,10.0]
[1748536402283,3.963,2644.7,2644.3,10.0]
[1748536402469,3.963,2644.7,2644.3,13.78161031]
[1748536402689,3.963,2644.7,2644.5,3.78141874]
[1748536402877,3.963,2644.7,2644.4,3.7814956]
[1748536403252,0.8332,2644.8,2644.5,3.78133293]
[1748536403447,4.7962,2644.8,2644.2,0.55]
[1748536403647,0.8332,2644.8,2644.5,3.78129348]
[1748536403847,4.7962,2644.8,2644.5,3.78129348]
[1748536404255,4.7962,2644.8,2644.6,3.78121427]
[1748536404466,4.7962,2644.8,2644.5,3.78129583]
[1748536404797,4.7962,2644.8,2644.5,4.15246008]
[1748536405200,1.062,2644.9,2644.5,4.15255413]
[1748536405494,1.062,2644.9,2644.6,3.78117846]
[1748536405495,5.025,2644.9,2644.6,3.78117846]
[1748536405676,4.91951922,2644.9,2644.3,3.78163897]
[1748536405847,0.8307,2644.8,2644.3,3.78163897]
[1748536406257,0.8307,2644.8,2644.4,8.0]
[1748536406793,4.6118099,2644.8,2644.2,4.33180983]
[1748536407093,0.95313291,2644.7,2644.2,4.33180983]
[1748536407304,4.73431816,2644.7,2644.1,13.7819224]
[1748536407584,4.73431816,2644.7,2643.9,0.55]
[1748536407755,4.73431816,2644.7,2644.2,3.78183671]
[1748536407967,0.95313291,2644.7,2644.3,3.78165227]
[1748536408166,0.8307,2644.8,2644.4,6.69546341]
[1748536408369,3.78119864,2644.7,2644.2,8.0]
[1748536408580,0.8307,2644.8,2644.0,8.55]
[1748536408890,0.8307,2644.8,2644.2,3.78184864]
[1748536408891,4.61177832,2644.8,2644.2,3.78184864]
[1748536409045,4.61170649,2644.8,2644.1,3.78193979]
[1748536409248,0.85747065,2644.7,2644.1,3.78193979]
[1748536409450,0.85747065,2644.7,2644.2,3.78174182]
[1748536409649,0.85747065,2644.7,2643.7,0.8161]
[1748536409863,0.85747065,2644.7,2644.1,10.0]
[1748536409864,0.78,2644.5,2644.1,10.0]
[1748536410187,3.963,2644.4,2644.2,3.78183466]
[1748536410350,3.963,2644.4,2644.2,3.78177719]
[1748536411264,3.963,2644.4,2644.1,3.78193858]
[1748536411584,3.963,2644.4,2644.1,3.78200102]
[1748536412091,3.963,2644.4,2644.2,3.7818547]
[1748536412858,3.963,2644.4,2644.1,13.78192156]
[1748536413766,3.963,2644.4,2644.2,3.78186124]
[1748536413990,3.963,2644.4,2644.0,12.379899]
[1748536414169,3.963,2644.4,2644.2,3.78179583]
[1748536414364,3.963,2644.4,2644.3,3.78171916]
[1748536414765,1.65547065,2644.7,2644.4,3.78157616]
[1748536414977,3.963,2644.5,2644.3,3.78165778]
[1748536415590,0.798,2644.7,2644.4,3.78157616]
[1748536415796,0.7679,2644.9,2644.3,0.55]
[1748536415969,3.963,2644.6,2644.5,3.78133362]
[1748536416292,3.963,2644.6,2644.4,3.78149538]
[1748536417459,3.963,2644.6,2644.5,3.78143316]
[1748536417812,0.8274,2645.2,2644.3,0.55]
[1748536418013,4.32444332,2645.1,2644.6,0.55]
[1748536418198,4.32444332,2645.1,2644.5,10.0]
[1748536418199,3.963,2645.1,2644.8,3.7809759]
[1748536419611,8.60075351,2645.1,2644.5,0.92945592]
[1748536419774,4.96982325,2645.0,2644.2,8.0]
[1748536419976,4.14256477,2644.9,2644.1,0.55]
[1748536420189,4.14275778,2644.8,2644.2,3.78178099]
[1748536420530,8.53557551,2644.7,2644.3,10.0]
[1748536420737,0.8274,2644.6,2644.1,10.0]
[1748536420882,4.60877449,2644.6,2644.2,10.0]
[1748536421254,4.60877449,2644.6,2643.7,0.7961]
[1748536421255,3.78164427,2644.4,2643.7,0.7961]
[1748536421554,7.74374183,2644.3,2644.0,10.0]
[1748536421844,4.5902803,2644.2,2643.7,3.78244337]
[1748536422135,4.59027681,2644.2,2643.7,8.0]
[1748536422335,0.8084,2644.2,2643.7,3.7824985]
[1748536422477,2.04178157,2644.2,2643.7,11.7824985]
[1748536422679,2.04178157,2644.2,2643.7,3.7824985]
[1748536423192,1.4,2644.0,2643.7,3.7824985]
[1748536423407,3.962,2643.9,2643.6,3.78262047]
[1748536423608,3.962,2643.9,2643.6,11.78262047]
[1748536423827,3.962,2643.9,2643.7,3.78254159]
[1748536424112,3.962,2643.9,2643.8,3.78243437]
[1748536424275,3.962,2643.9,2643.6,11.78259984]
[1748536424679,3.962,2643.9,2643.8,3.78243437]
[1748536425294,1.4,2644.0,2643.9,3.78229131]
[1748536426437,1.4,2644.0,2643.9,6.58617831]